bitfinex/quotes_BTCUSD_20250428
["timestamp","ask_amount","ask_price","bid_price","bid_amount"]
[1745882698877,0.01484813,95081.0,95080.0,0.01942332]
[1745882699079,0.01484813,95081.0,95080.0,0.00890587]
[1745882699080,0.03452576,95081.0,95080.0,0.00890587]
[1745882699479,0.01484813,95081.0,95080.0,0.00990587]
[1745882699710,0.01484813,95081.0,95080.0,0.00890587]
[1745882700094,0.01484813,95081.0,95080.0,0.00990587]
[1745882700426,0.03452144,95081.0,95080.0,0.00990587]
[1745882700731,0.03452144,95081.0,95080.0,0.00890587]
[1745882700927,0.03452144,95081.0,95080.0,0.01090587]
[1745882701464,0.03452144,95081.0,95080.0,0.00890587]
[1745882701681,0.01484813,95081.0,95080.0,0.00890587]
[1745882701893,0.01484813,95081.0,95080.0,0.00990587]
[1745882703652,0.0115597,95081.0,95080.0,0.00990587]
[1745882703879,0.0115597,95081.0,95080.0,0.11679601]
[1745882704121,0.00328847,95083.0,95081.0,0.21034696]
[1745882704337,0.00328847,95083.0,95081.0,0.3172371]
[1745882704812,0.01051568,95096.0,95092.0,0.01051613]
[1745882705239,0.01149603,95095.0,95092.0,0.01051613]
[1745882706535,0.01149603,95095.0,95086.0,0.2471719]
[1745882706536,0.01051635,95090.0,95081.0,0.10789014]
[1745882706775,0.01051646,95089.0,95085.0,0.0105169]
[1745882706992,0.01051591,95094.0,95089.0,0.01051646]
[1745882707164,0.01051613,95092.0,95087.0,0.01051668]
[1745882707376,0.01051635,95090.0,95087.0,0.01051668]
[1745882707952,0.01155145,95089.0,95087.0,0.01051668]
[1745882708159,0.01155145,95089.0,95088.0,0.21033148]
[1745882708600,0.00739595,95093.0,95092.0,0.21032263]
[1745882708798,0.0461,95105.0,95096.0,0.21031378]
[1745882710497,0.05349595,95105.0,95096.0,0.21031378]
[1745882710932,0.00739595,95105.0,95096.0,0.31720392]
[1745882711610,0.004,95109.0,95096.0,0.31720392]
[1745882712614,0.004,95109.0,95096.0,0.31820392]
[1745882713438,0.004,95109.0,95096.0,0.32120392]
[1745882719092,0.00328762,95108.0,95096.0,0.32120392]
[1745882719633,0.01966167,95107.0,95096.0,0.32120392]
[1745882720255,0.02294929,95106.0,95096.0,0.32120392]
[1745882720675,0.01966167,95105.0,95096.0,0.32120392]
[1745882721237,0.02294929,95104.0,95096.0,0.32120392]
[1745882721652,0.01966167,95103.0,95096.0,0.32120392]
[1745882722261,0.01139595,95109.0,95096.0,0.32120392]
[1745882722704,0.004,95109.0,95096.0,0.31820392]
[1745882722915,0.01966078,95108.0,95096.0,0.31720392]
[1745882723118,0.01966078,95108.0,95096.0,0.32220392]
[1745882723573,0.02294841,95107.0,95096.0,0.31920392]
[1745882723973,0.01966078,95106.0,95096.0,0.32220392]
[1745882724212,0.01966078,95105.0,95096.0,0.32220392]
[1745882724427,0.02294841,95105.0,95096.0,0.32220392]
[1745882724636,0.00328763,95105.0,95096.0,0.32220392]
[1745882725158,0.01966171,95104.0,95096.0,0.32220392]
[1745882725371,0.02294934,95104.0,95096.0,0.32220392]
[1745882725998,0.00328763,95104.0,95096.0,0.32220392]
[1745882726608,0.01139595,95109.0,95096.0,0.32220392]
[1745882726806,0.01139595,95109.0,95096.0,0.31920392]
[1745882727291,0.01966365,95108.0,95096.0,0.31920392]
[1745882727644,0.02295125,95107.0,95096.0,0.31920392]
[1745882727899,0.02295125,95107.0,95096.0,0.31720392]
[1745882728048,0.01966365,95106.0,95096.0,0.31720392]
[1745882728247,0.01966365,95106.0,95096.0,0.31920392]
[1745882728661,0.01966365,95105.0,95096.0,0.32220392]
[1745882728863,0.02295125,95105.0,95096.0,0.32420392]
[1745882729299,0.0032876,95105.0,95096.0,0.66120392]
[1745882729475,0.0032876,95105.0,95096.0,0.72564477]
[1745882729681,0.0032876,95105.0,95096.0,0.72864477]
[1745882729891,0.01139595,95109.0,95096.0,0.72864477]
[1745882730112,0.004,95109.0,95096.0,0.72864477]
[1745882731175,0.004,95109.0,95096.0,0.72564477]
[1745882731409,0.004,95109.0,95096.0,0.72664477]
[1745882731837,0.004,95109.0,95096.0,0.72964477]
[1745882732552,0.004,95109.0,95108.0,0.21028725]
[1745882733399,0.004,95109.0,95108.0,0.22169182]
[1745882734292,0.004,95109.0,95108.0,0.22942495]
[1745882734535,0.004,95109.0,95108.0,0.23142495]
[1745882734752,0.004,95109.0,95108.0,0.23242495]
[1745882744577,0.004,95109.0,95108.0,0.33931509]
[1745882744787,0.004,95109.0,95108.0,1.10489391]
[1745882745007,0.0004241,95115.0,95111.0,0.56482146]
[1745882745219,0.00739595,95128.0,95127.0,0.21024525]
[1745882745427,0.00784917,95128.0,95127.0,0.21024525]
[1745882745860,0.00045322,95128.0,95127.0,0.21024525]
[1745882747566,0.00045322,95128.0,95127.0,0.21124525]
[1745882751823,0.00045322,95128.0,95127.0,0.001]
[1745882752223,0.01040628,95128.0,95127.0,0.001]
[1745882752444,0.00045322,95128.0,95127.0,0.001]
[1745882752656,0.01040628,95128.0,95127.0,0.001]
[1745882752840,0.00045322,95128.0,95127.0,0.001]
[1745882753014,0.01040628,95128.0,95127.0,0.001]
[1745882753210,0.00045322,95128.0,95127.0,0.001]
[1745882753420,0.01040628,95128.0,95127.0,0.001]
[1745882753618,0.00045322,95128.0,95127.0,0.001]
[1745882753796,0.01040628,95128.0,95127.0,0.001]
[1745882755803,0.01040628,95128.0,95127.0,0.17954291]
[1745882756008,0.0004243,95132.0,95131.0,0.21023641]
[1745882756219,0.00056018,95132.0,95131.0,0.21023641]
[1745882756647,0.00056018,95132.0,95131.0,0.55023641]
[1745882756856,0.00056018,95132.0,95131.0,0.64055641]
[1745882757939,0.00056018,95132.0,95131.0,0.64355641]
[1745882758364,0.00056018,95132.0,95131.0,0.64555641]
[1745882758800,0.00056018,95132.0,95131.0,0.79814655]
[1745882759643,0.00056018,95132.0,95131.0,0.84604655]
[1745882759849,0.00056018,95132.0,95131.0,0.84304655]
[1745882760040,0.00056018,95132.0,95131.0,0.84604655]
[1745882760381,0.00056018,95132.0,95131.0,0.84304655]
[1745882760582,0.00056018,95132.0,95131.0,0.84104655]
[1745882760795,0.00056018,95132.0,95131.0,0.84604655]
[1745882760997,0.00056018,95132.0,95131.0,0.84804655]
[1745882761204,1e-08,95138.0,95137.0,0.21022315]
[1745882761403,1e-08,95138.0,95137.0,0.31921521]
[1745882761788,1e-08,95138.0,95137.0,0.31711329]
[1745882762000,0.004424,95139.0,95137.0,0.31711329]
[1745882762001,1e-08,95139.0,95138.0,0.35454085]
[1745882762212,1e-08,95139.0,95138.0,0.46143099]
[1745882762416,1e-08,95139.0,95138.0,0.46949878]
[1745882764030,1e-08,95139.0,95138.0,0.47249878]
[1745882764452,1e-08,95139.0,95138.0,0.46949878]
[1745882764652,1e-08,95139.0,95138.0,0.47449878]
[1745882764857,1e-08,95139.0,95138.0,0.47749878]
[1745882766307,1e-08,95139.0,95138.0,0.93523675]
[1745882769666,1e-08,95147.0,95145.0,0.06004085]
[1745882769867,1e-08,95147.0,95146.0,0.50873099]
[1745882770309,0.0004241,95167.0,95165.0,0.21016129]
[1745882770513,0.10013586,95166.0,95165.0,0.30064129]
[1745882771130,0.10013586,95166.0,95165.0,0.3118313]
[1745882771746,0.10013586,95166.0,95165.0,0.2213513]
[1745882771992,0.10013586,95166.0,95165.0,0.3118313]
[1745882772805,0.10013586,95166.0,95165.0,0.32078532]
[1745882773007,0.10013586,95166.0,95165.0,0.76767546]
[1745882773406,0.10013586,95166.0,95165.0,0.76867546]
[1745882773833,0.10013586,95166.0,95165.0,0.76767546]
[1745882774027,0.10013586,95166.0,95165.0,0.77167546]
[1745882774661,0.10013586,95166.0,95165.0,0.76967546]
[1745882775934,0.10013586,95166.0,95165.0,0.77267546]
[1745882782398,0.10013586,95166.0,95165.0,0.68219546]
[1745882782608,0.10013586,95166.0,95165.0,0.77263546]
[1745882783280,0.14793586,95166.0,95165.0,0.68219546]
[1745882783500,0.14793586,95166.0,95165.0,0.77263546]
[1745882783733,0.10013586,95166.0,95165.0,0.77263546]
[1745882787514,0.10013586,95166.0,95165.0,0.68219546]
[1745882787732,0.10013586,95166.0,95165.0,0.77263546]
[1745882791871,0.09875444,95166.0,95165.0,0.77263546]
[1745882795199,0.09875444,95166.0,95165.0,0.57530532]
[1745882795383,0.09875444,95166.0,95165.0,0.56411531]
[1745882795797,0.1184346,95166.0,95165.0,0.56411531]
[1745882797157,0.1184346,95166.0,95165.0,0.56111531]
[1745882797367,0.1184346,95166.0,95165.0,0.56011531]
[1745882797368,0.12577991,95166.0,95165.0,0.56011531]
[1745882797695,0.12577991,95166.0,95165.0,0.56111531]
[1745882798253,0.1184346,95166.0,95165.0,0.56111531]
[1745882798770,0.12577991,95166.0,95165.0,0.56111531]
[1745882799208,0.1184346,95166.0,95165.0,0.56111531]
[1745882801815,0.17547991,95166.0,95165.0,0.01095402]
[1745882803989,0.15579975,95166.0,95165.0,0.01095402]
[1745882804977,0.17549424,95166.0,95165.0,0.01095402]
[1745882807347,0.12579424,95166.0,95165.0,0.01095402]
[1745882807546,0.10609975,95166.0,95165.0,0.01095402]
[1745882807746,0.09875444,95166.0,95165.0,0.01095402]
[1745882808284,0.09875444,95166.0,95165.0,0.11784416]
[1745882815513,0.09875444,95166.0,95165.0,0.21000416]
[1745882816173,0.09875444,95166.0,95165.0,0.01095402]
[1745882817362,0.11845026,95166.0,95165.0,0.01095402]
[1745882817592,0.12582055,95166.0,95165.0,0.01095402]
[1745882820685,0.12582055,95166.0,95165.0,0.11784416]
[1745882820888,0.09875444,95166.0,95165.0,0.11784416]
[1745882821736,0.09875444,95166.0,95165.0,0.20940416]
[1745882822445,0.09875444,95166.0,95165.0,0.21150561]
[1745882823739,0.09875444,95166.0,95165.0,0.20950561]
[1745882824175,0.09269444,95166.0,95165.0,0.21150561]
[1745882824532,0.09269444,95166.0,95165.0,0.20950561]
[1745882824728,0.09269444,95166.0,95165.0,0.21150561]
[1745882829283,0.09269444,95166.0,95165.0,0.21050561]
[1745882829609,0.09269444,95166.0,95165.0,0.21150561]
[1745882829889,0.09269444,95166.0,95165.0,0.20950561]
[1745882830090,0.09269444,95166.0,95165.0,0.21150561]
[1745882830286,0.09269444,95166.0,95165.0,0.20940416]
[1745882830495,0.09269444,95166.0,95165.0,0.21150559]
[1745882830697,0.09269444,95166.0,95165.0,0.20850559]
[1745882830910,0.09269444,95166.0,95165.0,0.21050559]
[1745882831209,0.09269444,95166.0,95165.0,0.21150556]
[1745882838976,0.09269444,95166.0,95165.0,0.20940416]
[1745882839379,0.09269444,95166.0,95165.0,0.20740416]
[1745882839583,0.09269444,95166.0,95165.0,0.21040416]
[1745882840084,0.09269444,95166.0,95165.0,0.20740416]
[1745882840508,0.09269444,95166.0,95165.0,0.21040416]
[1745882841352,0.09269444,95166.0,95165.0,0.20740416]
[1745882841735,0.09269444,95166.0,95165.0,0.20640416]
[1745882842275,0.09269444,95166.0,95165.0,0.20840416]
[1745882842725,0.09269444,95166.0,95165.0,0.21240416]
[1745882855641,0.09269444,95166.0,95165.0,0.22566501]
[1745882855849,0.09269444,95166.0,95165.0,0.21112416]
[1745882856056,0.14089444,95166.0,95165.0,0.21112416]
[1745882856250,0.14089444,95166.0,95165.0,0.12084416]
[1745882856446,0.16059873,95166.0,95165.0,0.12084416]
[1745882856647,0.16798784,95166.0,95165.0,0.12084416]
[1745882857866,0.17537864,95166.0,95165.0,0.12084416]
[1745882858077,0.16798784,95166.0,95165.0,0.12084416]
[1745882858230,0.178664,95166.0,95165.0,0.11684416]
[1745882858430,0.178664,95166.0,95165.0,0.11784416]
[1745882858651,0.178664,95166.0,95165.0,0.11884416]
[1745882859747,0.17127489,95166.0,95165.0,0.11884416]
[1745882861877,0.1515706,95166.0,95165.0,0.11884416]
[1745882862089,0.14828524,95166.0,95165.0,0.11884416]
[1745882862326,0.16387766,95166.0,95165.0,0.11884416]
[1745882863257,0.11567766,95166.0,95165.0,0.11884416]
[1745882865329,0.11239234,95166.0,95165.0,0.11884416]
[1745882865536,0.11239234,95166.0,95165.0,0.4609455]
[1745882865746,0.11239234,95166.0,95165.0,0.56366501]
[1745882865931,0.09269444,95166.0,95165.0,0.56366501]
[1745882866992,0.09269444,95166.0,95165.0,0.56266501]
[1745882867226,0.09269444,95166.0,95165.0,0.56166501]
[1745882867638,0.09269444,95166.0,95165.0,0.56466501]
[1745882867957,0.09269444,95166.0,95165.0,0.56166501]
[1745882868754,0.09269444,95166.0,95165.0,0.56566501]
[1745882876778,0.09269444,95166.0,95165.0,0.56166501]
[1745882876990,0.09269444,95166.0,95165.0,0.55966501]
[1745882877201,0.09269444,95166.0,95165.0,0.56566501]
[1745882877661,0.09269444,95166.0,95165.0,0.56166501]
[1745882877868,0.09269444,95166.0,95165.0,0.56366501]
[1745882878103,0.09269444,95166.0,95165.0,0.56766501]
[1745882878949,0.09269444,95166.0,95165.0,0.97870298]
[1745882880033,0.09269444,95166.0,95165.0,0.97070298]
[1745882880235,0.09269444,95166.0,95165.0,0.97670298]
[1745882880779,0.09269444,95166.0,95165.0,0.97470298]
[1745882880989,0.09269444,95166.0,95165.0,0.97870298]
[1745882883538,0.09269444,95166.0,95165.0,0.97070298]
[1745882883771,0.09269444,95166.0,95165.0,0.97570298]
[1745882883997,0.09269444,95166.0,95165.0,0.97970298]
[1745882884219,0.09269444,95166.0,95165.0,0.97470298]
[1745882884648,0.09269444,95166.0,95165.0,0.97970298]
[1745882886798,0.09269444,95166.0,95165.0,0.97470298]
[1745882887638,0.09269444,95166.0,95165.0,0.97500298]
[1745882888330,0.09269444,95166.0,95165.0,0.97000298]
[1745882888454,0.09269444,95166.0,95165.0,0.97500298]
[1745882890768,0.09269444,95166.0,95165.0,0.56396501]
[1745882900975,0.09269444,95166.0,95165.0,0.56444501]
[1745882903688,0.09269444,95166.0,95165.0,0.55944501]
[1745882904128,0.09269444,95166.0,95165.0,0.56444501]
[1745882904463,0.09269444,95166.0,95165.0,0.55944501]
[1745882905119,0.09269444,95166.0,95165.0,0.55544501]
[1745882905520,0.09269444,95166.0,95165.0,0.55944501]
[1745882905845,0.09269444,95166.0,95165.0,0.56544501]
[1745882909115,1e-08,95169.0,95168.0,0.56469552]
[1745882909321,1e-08,95169.0,95168.0,0.67158566]
[1745882910807,1e-08,95169.0,95168.0,0.67758566]
[1745882911390,1e-08,95169.0,95168.0,0.68158566]
[1745882922645,1e-08,95169.0,95168.0,0.77186566]
[1745882926000,0.04720001,95169.0,95168.0,0.68158566]
[1745882940263,1e-08,95169.0,95168.0,0.68158566]
[1745882951349,1e-08,95169.0,95168.0,1.09268566]
[1745882952056,1e-08,95169.0,95168.0,1.18296566]
[1745882970954,0.04830001,95169.0,95168.0,1.18296566]
[1745882971308,0.04830001,95169.0,95168.0,1.18292566]
[1745882975235,0.04830001,95169.0,95168.0,1.09268566]
[1745882975481,0.04830001,95169.0,95168.0,1.18292566]
[1745882975716,0.04830001,95169.0,95168.0,0.72149467]
[1745882975958,0.04830001,95169.0,95168.0,0.01]
[1745882976201,0.12538125,95169.0,95168.0,0.01]
[1745882976671,0.13276595,95169.0,95168.0,0.01]
[1745882976873,0.13276595,95169.0,95168.0,0.004]
[1745882977093,0.13276595,95169.0,95168.0,0.008]
[1745882977541,0.13276595,95169.0,95168.0,0.004]
[1745882977734,0.13276595,95169.0,95166.0,0.22066617]
[1745882977932,0.08446595,95169.0,95168.0,0.002]
[1745882978157,0.07687908,95169.0,95168.0,0.003]
[1745882978373,0.11759438,95169.0,95168.0,0.003]
[1745882978562,0.12512979,95169.0,95168.0,0.002]
[1745882979320,0.16372676,95169.0,95168.0,0.002]
[1745882979551,0.16372676,95169.0,95147.0,0.21019995]
[1745882979552,0.0484,95145.0,95144.0,0.09024]
[1745882980012,0.07557756,95145.0,95144.0,0.09024]
[1745882980237,0.06809437,95145.0,95144.0,0.09819584]
[1745882980677,0.05588319,95145.0,95144.0,0.10219584]
[1745882980876,0.05588319,95145.0,95144.0,0.01195584]
[1745882981137,0.05588319,95145.0,95144.0,0.004]
[1745882981138,0.37117737,95145.0,95144.0,0.004]
[1745882981415,0.39087174,95145.0,95144.0,0.004]
[1745882981616,0.39087174,95145.0,95144.0,0.01398186]
[1745882981823,0.33458303,95145.0,95144.0,0.006]
[1745882982177,0.33458303,95145.0,95144.0,0.007]
[1745882982387,0.33458303,95145.0,95144.0,0.003]
[1745882982991,0.31488866,95145.0,95144.0,0.003]
[1745882983616,0.31488866,95145.0,95144.0,0.006]
[1745882983815,0.39322461,95145.0,95144.0,0.006]
[1745882984034,0.39322461,95145.0,95144.0,0.003]
[1745882984469,0.0495,95140.0,95138.0,0.01051104]
[1745882984670,0.0495,95140.0,95137.0,0.01051115]
[1745882985033,0.06730245,95139.0,95134.0,0.22074041]
[1745882985254,0.0495,95138.0,95134.0,0.22074041]
[1745882985461,0.06001104,95138.0,95129.0,0.01136064]
[1745882985682,0.00729549,95137.0,95129.0,0.01136064]
[1745882985934,0.047,95136.0,95134.0,0.01051148]
[1745882986140,0.05429648,95136.0,95134.0,0.01051148]
[1745882986820,0.05429648,95136.0,95134.0,0.22074089]
[1745882987675,0.05429648,95136.0,95134.0,0.22274089]
[1745882988370,0.05429648,95136.0,95134.0,0.002]
[1745882988576,0.26452253,95136.0,95134.0,0.002]
[1745882989114,0.3151548,95136.0,95134.0,0.002]
[1745882989208,0.26452253,95136.0,95134.0,0.002]
[1745882989427,0.26452253,95136.0,95134.0,0.00972061]
[1745882989625,0.26452253,95136.0,95134.0,0.002]
[1745882990253,0.05429648,95136.0,95134.0,0.002]
[1745882992437,0.05429648,95136.0,95135.0,0.21022757]
[1745882992899,0.047,95136.0,95135.0,0.21022757]
[1745882993957,4.523e-05,95138.0,95135.0,0.22273894]
[1745882995827,4.523e-05,95138.0,95137.0,0.21022315]
[1745882997697,4.523e-05,95138.0,95137.0,0.21222315]
[1745883003655,4.523e-05,95138.0,95137.0,0.21203744]
[1745883004856,4.523e-05,95138.0,95137.0,0.21003744]
[1745883005059,4.523e-05,95138.0,95137.0,0.21203744]
[1745883005708,0.01968553,95138.0,95137.0,0.21003744]
[1745883005941,0.01968553,95138.0,95137.0,0.21203744]
[1745883008726,0.02297193,95138.0,95137.0,0.21203744]
[1745883019815,0.02292348,95138.0,95137.0,0.21203744]
[1745883020977,0.03030946,95138.0,95137.0,0.21203744]
[1745883021809,0.02702306,95138.0,95137.0,0.21203744]
[1745883022276,0.05711016,95146.0,95143.0,0.22072027]
[1745883022479,0.01067473,95145.0,95143.0,0.22085613]
[1745883022685,0.01764648,95145.0,95143.0,0.22085613]
[1745883023209,0.00738842,95144.0,95143.0,0.22085613]
[1745883023540,0.01764747,95144.0,95143.0,0.22085613]
[1745883024119,0.01764801,95144.0,95143.0,0.22085613]
[1745883025295,0.01864801,95144.0,95143.0,0.22085613]
[1745883025711,0.01864801,95144.0,95143.0,0.00013586]
[1745883025917,0.09579314,95144.0,95143.0,0.00013586]
[1745883031926,0.1155002,95144.0,95143.0,0.00013586]
[1745883044537,0.11221389,95144.0,95143.0,0.00013586]
[1745883045400,0.03506876,95144.0,95143.0,0.00013586]
[1745883045612,0.03506876,95144.0,95143.0,0.107026]
[1745883045820,0.02070706,95144.0,95143.0,0.12156685]
[1745883046026,0.001,95144.0,95143.0,0.46156685]
[1745883046255,0.04965521,95162.0,95159.0,0.01050872]
[1745883046454,0.02955237,95161.0,95160.0,0.21017234]
[1745883046611,0.0069583,95161.0,95160.0,0.21017234]
[1745883046819,0.00738517,95161.0,95160.0,0.21017234]
[1745883047610,0.00938517,95161.0,95160.0,0.21017234]
[1745883048993,0.00938517,95161.0,95160.0,0.22088639]
[1745883050312,0.00738517,95161.0,95160.0,0.22088639]
[1745883050735,0.00838517,95161.0,95160.0,0.22088639]
[1745883051155,0.00838517,95161.0,95160.0,0.22860778]
[1745883051784,0.001,95161.0,95160.0,0.22860778]
[1745883060534,0.01965905,95165.0,95163.0,0.21016395]
[1745883060759,0.0467,95166.0,95163.0,0.22067223]
[1745883060977,0.00705469,95164.0,95163.0,0.22067223]
[1745883061195,0.00705569,95164.0,95163.0,0.22067223]
[1745883061425,0.01965004,95165.0,95163.0,0.22067223]
[1745883061875,0.00705469,95164.0,95163.0,0.22067223]
[1745883062122,0.02670473,95164.0,95163.0,0.22067223]
[1745883063198,0.02670473,95164.0,95163.0,0.22167223]
[1745883063364,0.02770473,95164.0,95163.0,0.22167223]
[1745883067645,0.0350899,95164.0,95163.0,0.22167223]
[1745883069962,0.0350899,95164.0,95163.0,0.001]
[1745883073926,0.2452534,95164.0,95163.0,0.001]
[1745883074136,0.32195995,95164.0,95163.0,0.001]
[1745883076032,0.32524586,95164.0,95163.0,0.001]
[1745883079053,0.478036,95164.0,95163.0,0.001]
[1745883079769,0.01050927,95154.0,95151.0,0.01050961]
[1745883079972,0.01761125,95153.0,95150.0,0.01050972]
[1745883080167,0.01965004,95152.0,95150.0,0.01050972]
[1745883080397,0.00710285,95151.0,95150.0,0.01050972]
[1745883080636,0.02675289,95151.0,95150.0,0.01050972]
[1745883080783,0.0300388,95151.0,95150.0,0.01050972]
[1745883080984,0.03742397,95151.0,95150.0,0.01050972]
[1745883082251,0.03942397,95151.0,95150.0,0.01050972]
[1745883085922,0.01050983,95149.0,95146.0,0.01051016]
[1745883086168,0.08682397,95151.0,95147.0,0.2207111]
[1745883086393,0.02675686,95148.0,95147.0,0.2207111]
[1745883086582,0.04915659,95148.0,95147.0,0.2207111]
[1745883087000,0.06693449,95148.0,95147.0,0.2207111]
[1745883087226,0.06693449,95148.0,95144.0,0.01051038]
[1745883087450,0.03742794,95148.0,95145.0,0.01051027]
[1745883087672,0.00738517,95147.0,95145.0,0.01051027]
[1745883087945,0.02703521,95147.0,95145.0,0.01051027]
[1745883088134,0.03004376,95146.0,95145.0,0.22071574]
[1745883088592,0.03742893,95146.0,95145.0,0.22071574]
[1745883089570,0.03842893,95146.0,95145.0,0.22071574]
[1745883090513,0.03842893,95146.0,95145.0,0.22171574]
[1745883094614,0.03842893,95146.0,95145.0,0.01151027]
[1745883094840,0.03842893,95146.0,95145.0,0.001]
[1745883095639,0.03842893,95146.0,95145.0,0.21120547]
[1745883097563,0.03842893,95146.0,95145.0,0.001]
[1745883097764,0.03842893,95146.0,95145.0,0.21120547]
[1745883101704,0.03842893,95146.0,95145.0,0.001]
[1745883109288,0.03842893,95146.0,95145.0,0.21120547]
[1745883109467,0.03843087,95146.0,95145.0,0.21120547]
[1745883111213,0.06798059,95146.0,95145.0,0.21120547]
[1745883111668,0.06798059,95146.0,95145.0,0.001]
[1745883112649,0.06798059,95146.0,95143.0,0.22854617]
[1745883112870,0.02954972,95145.0,95143.0,0.22854617]
[1745883113296,0.04401838,95144.0,95143.0,0.22854617]
[1745883113503,0.06695433,95144.0,95143.0,0.22854617]
[1745883113726,0.06695433,95144.0,95143.0,0.22954617]
[1745883115368,0.06695433,95144.0,95143.0,0.22854617]
[1745883115577,0.06695433,95144.0,95143.0,0.22954617]
[1745883119426,0.06695433,95144.0,95143.0,0.00882725]
[1745883119546,0.30451968,95144.0,95143.0,0.00113586]
[1745883119765,0.32426201,95144.0,95143.0,0.00113586]
[1745883121705,0.43115215,95144.0,95143.0,0.00113586]
[1745883121961,0.47775215,95144.0,95143.0,0.00113586]
[1745883122160,0.21023862,95130.0,95129.0,0.0008486]
[1745883122369,0.31177462,95130.0,95129.0,0.0008486]
[1745883122591,0.056136,95130.0,95129.0,0.0008486]
[1745883122789,0.02703715,95130.0,95129.0,0.0008486]
[1745883123006,0.03391519,95130.0,95129.0,0.0008486]
[1745883123523,0.0372011,95130.0,95129.0,0.0008486]
[1745883124465,0.0392011,95130.0,95129.0,0.0008486]
[1745883125382,0.0402011,95130.0,95129.0,0.0008486]
[1745883130704,0.05969451,95130.0,95129.0,0.0008486]
[1745883130920,0.0890011,95130.0,95129.0,0.0008486]
[1745883133377,0.08571519,95130.0,95129.0,0.0008486]
[1745883133581,0.08900212,95130.0,95129.0,0.0008486]
[1745883136284,0.01051259,95124.0,95121.0,0.01051292]
[1745883136480,0.01051259,95124.0,95121.0,0.01055815]
[1745883136687,0.01004894,95123.0,95121.0,0.01055815]
[1745883137156,0.01965004,95122.0,95121.0,0.01055815]
[1745883137365,0.01965004,95122.0,95121.0,4.523e-05]
[1745883137569,0.02641304,95122.0,95121.0,4.523e-05]
[1745883137878,0.02969997,95122.0,95121.0,4.523e-05]
[1745883138713,0.02969997,95122.0,95121.0,0.00104523]
[1745883140719,0.02293697,95122.0,95121.0,0.00104523]
[1745883141356,0.02969997,95122.0,95121.0,0.00100129]
[1745883142532,0.03708708,95122.0,95121.0,0.00100129]
[1745883143064,0.03032408,95122.0,95121.0,0.00100129]
[1745883143260,0.02293697,95122.0,95121.0,0.00100129]
[1745883144362,0.03032408,95122.0,95121.0,0.00100129]
[1745883146983,0.03708345,95122.0,95121.0,0.00100129]
[1745883147396,0.03032408,95122.0,95121.0,0.00100129]
[1745883151490,0.03032408,95122.0,95121.0,0.2579598]
[1745883151702,0.02293697,95122.0,95121.0,0.36484994]
[1745883152111,0.00328693,95122.0,95121.0,0.36484994]
[1745883152495,0.00328693,95122.0,95121.0,0.36384994]
[1745883152694,0.00328693,95122.0,95121.0,0.36584994]
[1745883152990,0.02298919,95122.0,95121.0,0.36584994]
[1745883153230,0.02298919,95122.0,95121.0,0.36684994]
[1745883153439,0.00328693,95122.0,95121.0,0.36684994]
[1745883159467,0.00328693,95122.0,95121.0,0.70684994]
[1745883160710,0.00738534,95135.0,95133.0,0.22074277]
[1745883161053,0.02644727,95134.0,95133.0,0.22074277]
[1745883161613,0.03383261,95134.0,95133.0,0.22074277]
[1745883162087,0.03711921,95134.0,95133.0,0.22074277]
[1745883162678,0.03036406,95134.0,95133.0,0.22074277]
[1745883163088,0.03236406,95134.0,95133.0,0.22074277]
[1745883163301,0.02497872,95134.0,95133.0,0.22074277]
[1745883163755,0.0062866,95134.0,95133.0,0.22074277]
[1745883163968,0.0032866,95134.0,95133.0,0.22074277]
[1745883164189,0.0032866,95134.0,95133.0,0.22374277]
[1745883165462,0.0032866,95134.0,95133.0,0.67063291]
[1745883165694,0.00738534,95145.0,95144.0,0.56474853]
[1745883165923,0.0004245,95161.0,95157.0,0.21017896]
[1745883166199,0.0004245,95161.0,95160.0,0.56471319]
[1745883166425,0.0004245,95161.0,95160.0,0.67160333]
[1745883166651,0.0004245,95161.0,95160.0,0.76820333]
[1745883166868,0.0004245,95161.0,95160.0,0.85828333]
[1745883167536,0.00054347,95161.0,95160.0,0.87797637]
[1745883167988,0.00054347,95161.0,95160.0,0.86897637]
[1745883169308,0.00054347,95161.0,95160.0,0.87297637]
[1745883169526,0.00054347,95161.0,95160.0,0.86897637]
[1745883169718,0.00054347,95161.0,95160.0,0.87397637]
[1745883169924,0.00054347,95161.0,95160.0,0.88773635]
[1745883170374,0.00054347,95161.0,95160.0,0.88173635]
[1745883170580,0.00054347,95161.0,95160.0,0.88973635]
[1745883174206,0.00054347,95161.0,95160.0,0.84133635]
[1745883175050,0.00054347,95161.0,95160.0,0.79313635]
[1745883181022,0.00054347,95161.0,95160.0,0.78713635]
[1745883182410,0.00054347,95161.0,95160.0,0.79213635]
[1745883194860,0.00054347,95161.0,95160.0,0.79209635]
[1745883223209,1e-08,95161.0,95160.0,0.70205635]
[1745883223427,1e-08,95161.0,95160.0,0.79205635]
[1745883234645,0.02684902,95170.0,95160.0,0.79205635]
[1745883234878,0.02693464,95170.0,95169.0,0.35454085]
[1745883235095,0.02693464,95170.0,95169.0,0.46143099]
[1745883237571,0.02693464,95170.0,95169.0,0.47143099]
[1745883238498,0.02693464,95170.0,95169.0,0.51823099]
[1745883244966,0.0024241,95178.0,95176.0,0.22467785]
[1745883245196,0.0024241,95178.0,95177.0,0.123532]
[1745883245418,7e-05,95186.0,95182.0,0.56466461]
[1745883245633,7e-05,95186.0,95182.0,0.76151475]
[1745883246055,7e-05,95186.0,95182.0,0.78103245]
[1745883247356,7e-05,95186.0,95182.0,0.69407245]
[1745883247548,7e-05,95186.0,95182.0,0.78403245]
[1745883248388,7e-05,95186.0,95182.0,0.78903245]
[1745883248617,7e-05,95186.0,95182.0,0.76951475]
[1745883254612,7e-05,95186.0,95182.0,0.76947475]
[1745883255022,7e-05,95186.0,95182.0,0.67955475]
[1745883255237,7e-05,95186.0,95182.0,0.76947475]
[1745883264225,0.0476245,95183.0,95182.0,0.7549339]
[1745883266220,0.04739619,95183.0,95182.0,0.7549339]
[1745883269973,0.04739619,95183.0,95182.0,0.75457324]
[1745883305854,0.00019619,95183.0,95182.0,0.75457324]
[1745883308771,0.00019619,95183.0,95182.0,0.76911409]
[1745883313304,0.00019619,95183.0,95182.0,0.69874452]
[1745883313518,0.00019619,95183.0,95182.0,0.78862452]
[1745883313743,0.00019619,95183.0,95182.0,0.69874452]
[1745883313959,0.00019619,95183.0,95182.0,0.78862452]
[1745883314168,0.00019619,95183.0,95182.0,0.83392452]
[1745883314398,0.0005,95190.0,95186.0,0.01454085]
[1745883314585,0.0005,95190.0,95184.0,0.36504681]
[1745883314586,0.0005,95190.0,95189.0,0.56464916]
[1745883314832,0.0005,95190.0,95189.0,0.6715393]
[1745883315518,0.0005,95190.0,95189.0,0.67950806]
[1745883316402,0.0005,95190.0,95189.0,0.68050806]
[1745883316619,1e-08,95192.0,95191.0,0.56464474]
[1745883316826,1e-08,95192.0,95191.0,0.67153488]